[Event "Late-Titled-Tuesday-Blitz-October-24-2023"]
[Site "Chess.com"]
[Date "2023.10.24"]
[Round "5"]
[White "vugarrasulov"]
[Black "Arseniy_Nesterov"]
[Result "1-0"]
[WhiteElo "3010"]
[BlackElo "2851"]
[TimeControl "180+1"]
[EndTime "14:56:08 PDT"]
[Termination "vugarrasulov won by resignation"]

1. e4 {[%clk 0:03:00.9]} 1... e5 {[%clk 0:03:00.2]} 2. Nf3 {[%clk 0:03:00.3]}
2... Nc6 {[%clk 0:03:00.9]} 3. Bc4 {[%clk 0:03:00.6]} 3... Nf6 {[%clk
0:03:01.1]} 4. d3 {[%clk 0:03:00.5]} 4... Be7 {[%clk 0:03:00.4]} 5. O-O {[%clk
0:02:59.4]} 5... O-O {[%clk 0:02:59.2]} 6. Re1 {[%clk 0:02:59.3]} 6... d6 {[%clk
0:02:58.6]} 7. a4 {[%clk 0:02:59.1]} 7... a5 {[%clk 0:02:58.3]} 8. Nc3 {[%clk
0:02:52.4]} 8... h6 {[%clk 0:02:50.6]} 9. h3 {[%clk 0:02:51.6]} 9... Be6 {[%clk
0:02:47.8]} 10. Nd5 {[%clk 0:02:46.5]} 10... Bxd5 {[%clk 0:02:22.8]} 11. exd5
{[%clk 0:02:37.9]} 11... Nb4 {[%clk 0:02:21.9]} 12. d4 {[%clk 0:02:38.3]} 12...
e4 {[%clk 0:01:58.2]} 13. Nd2 {[%clk 0:02:36.4]} 13... Nbxd5 {[%clk 0:01:56.8]}
14. Nxe4 {[%clk 0:02:30.2]} 14... c6 {[%clk 0:01:50.9]} 15. Nxf6+ {[%clk
0:02:17.6]} 15... Nxf6 {[%clk 0:01:51.8]} 16. d5 {[%clk 0:02:05.1]} 16... Nxd5
{[%clk 0:01:40.1]} 17. Bxd5 {[%clk 0:02:06]} 17... cxd5 {[%clk 0:01:41]} 18.
Qxd5 {[%clk 0:02:02.6]} 18... Bf6 {[%clk 0:01:40.9]} 19. c3 {[%clk 0:02:01.1]}
19... Qb6 {[%clk 0:01:40.1]} 20. Re2 {[%clk 0:01:49.9]} 20... Qc6 {[%clk
0:01:34.3]} 21. Qb5 {[%clk 0:01:41.6]} 21... Rfe8 {[%clk 0:01:27.6]} 22. Be3
{[%clk 0:01:41.3]} 22... Re5 {[%clk 0:01:26.1]} 23. Qxc6 {[%clk 0:01:37.8]}
23... bxc6 {[%clk 0:01:26.2]} 24. Rd2 {[%clk 0:01:33.9]} 24... d5 {[%clk
0:01:21.8]} 25. Bd4 {[%clk 0:01:29.2]} 25... Re4 {[%clk 0:01:20.6]} 26. Bxf6
{[%clk 0:01:28.6]} 26... gxf6 {[%clk 0:01:21.5]} 27. f3 {[%clk 0:01:23]} 27...
Rc4 {[%clk 0:01:17.6]} 28. Kf2 {[%clk 0:01:22]} 28... Rb8 {[%clk 0:01:16.5]} 29.
Ke3 {[%clk 0:01:18.3]} 29... d4+ {[%clk 0:00:51.6]} 30. Rxd4 {[%clk 0:01:05.3]}
30... Rxd4 {[%clk 0:00:49.7]} 31. Kxd4 {[%clk 0:01:06.2]} 31... Rxb2 {[%clk
0:00:50.2]} 32. Kc5 {[%clk 0:00:57.9]} 32... Rxg2 {[%clk 0:00:45]} 33. Kxc6
{[%clk 0:00:57]} 33... Rg3 {[%clk 0:00:45.5]} 34. c4 {[%clk 0:00:56.3]} 34...
Rxf3 {[%clk 0:00:45.8]} 35. c5 {[%clk 0:00:56.8]} 35... Rxh3 {[%clk 0:00:42.9]}
36. Rc1 {[%clk 0:00:55.5]} 36... Kf8 {[%clk 0:00:37.1]} 37. Kb6 {[%clk
0:00:53.9]} 37... Rb3+ {[%clk 0:00:33.8]} 38. Kxa5 {[%clk 0:00:48.1]} 38... Ke7
{[%clk 0:00:34]} 39. Rd1 {[%clk 0:00:48.8]} 39... Rb2 {[%clk 0:00:16.7]} 40. c6
{[%clk 0:00:48.5]} 40... Rc2 {[%clk 0:00:16.7]} 41. Kb6 {[%clk 0:00:48.2]} 41...
Rb2+ {[%clk 0:00:17]} 42. Kc7 {[%clk 0:00:43.9]} 42... Ra2 {[%clk 0:00:16.8]}
43. Re1+ {[%clk 0:00:44.5]} 43... Kf8 {[%clk 0:00:16.6]} 44. Re4 {[%clk
0:00:43.4]} 44... f5 {[%clk 0:00:17.2]} 45. Rc4 {[%clk 0:00:43]} 45... Ke7
{[%clk 0:00:16.1]} 46. Kc8 {[%clk 0:00:38.3]} 46... Kd6 {[%clk 0:00:11.4]} 47.
c7 {[%clk 0:00:37.6]} 47... Kd5 {[%clk 0:00:10]} 48. Rh4 {[%clk 0:00:35.5]}
48... Ke5 {[%clk 0:00:09.9]} 49. Kb7 {[%clk 0:00:29.6]} 49... Rc2 {[%clk
0:00:09.2]} 50. c8=Q {[%clk 0:00:27.2]} 50... Rxc8 {[%clk 0:00:08.9]} 51. Kxc8
{[%clk 0:00:28.1]} 51... f4 {[%clk 0:00:09.8]} 1-0

[Event "Late-Titled-Tuesday-Blitz-October-24-2023"]
[Site "Chess.com"]
[Date "2023.10.24"]
[Round "5"]
[White "Kostukov_Alex"]
[Black "Sanyura"]
[Result "1/2-1/2"]
[WhiteElo "2431"]
[BlackElo "2607"]
[TimeControl "180+1"]
[EndTime "14:56:11 PDT"]
[Termination "Game drawn by repetition"]

1. g3 {[%clk 0:02:54.5]} 1... Nf6 {[%clk 0:02:59.8]} 2. Bg2 {[%clk 0:02:54.2]}
2... g6 {[%clk 0:03:00.7]} 3. c4 {[%clk 0:02:50]} 3... d6 {[%clk 0:03:01.1]} 4.
Nf3 {[%clk 0:02:50.9]} 4... Bg7 {[%clk 0:03:01.7]} 5. O-O {[%clk 0:02:51.4]}
5... O-O {[%clk 0:03:02.6]} 6. d4 {[%clk 0:02:51.6]} 6... Nbd7 {[%clk
0:03:03.3]} 7. Nc3 {[%clk 0:02:52.1]} 7... e5 {[%clk 0:03:04]} 8. h3 {[%clk
0:02:51.7]} 8... exd4 {[%clk 0:03:04.6]} 9. Nxd4 {[%clk 0:02:50]} 9... Nc5
{[%clk 0:03:05.5]} 10. b3 {[%clk 0:02:47.6]} 10... a5 {[%clk 0:03:05.7]} 11. Rb1
{[%clk 0:02:35.6]} 11... a4 {[%clk 0:03:04]} 12. b4 {[%clk 0:02:34.9]} 12... Ne6
{[%clk 0:03:04.3]} 13. Ndb5 {[%clk 0:02:30.2]} 13... Nd7 {[%clk 0:03:00.3]} 14.
Nxa4 {[%clk 0:02:16.8]} 14... Ne5 {[%clk 0:02:55.6]} 15. c5 {[%clk 0:02:04.3]}
15... dxc5 {[%clk 0:02:35.4]} 16. Qxd8 {[%clk 0:01:54]} 16... Rxd8 {[%clk
0:02:35]} 17. Nxc5 {[%clk 0:01:53.8]} 17... c6 {[%clk 0:02:19.5]} 18. Nxe6
{[%clk 0:01:42.7]} 18... Bxe6 {[%clk 0:02:20.1]} 19. Nc7 {[%clk 0:01:42.6]}
19... Bxa2 {[%clk 0:02:19.4]} 20. Nxa8 {[%clk 0:01:23.8]} 20... Bxb1 {[%clk
0:02:19.5]} 21. Bg5 {[%clk 0:01:08.2]} 21... Rxa8 {[%clk 0:02:17.8]} 22. Rxb1
{[%clk 0:01:07.9]} 22... h6 {[%clk 0:02:17.3]} 23. Bf4 {[%clk 0:01:04.7]} 23...
Ra2 {[%clk 0:02:17.8]} 24. b5 {[%clk 0:00:51.5]} 24... cxb5 {[%clk 0:02:14.7]}
25. Rxb5 {[%clk 0:00:43.2]} 25... Rxe2 {[%clk 0:02:12.5]} 26. Rxb7 {[%clk
0:00:39.6]} 26... Re1+ {[%clk 0:01:41.4]} 27. Kh2 {[%clk 0:00:37.3]} 27... Re2
{[%clk 0:01:22.6]} 28. Be3 {[%clk 0:00:35.6]} 28... Nc4 {[%clk 0:01:22.6]} 29.
Bc5 {[%clk 0:00:29]} 29... Rd2 {[%clk 0:00:53.5]} 30. Rb8+ {[%clk 0:00:20.2]}
30... Kh7 {[%clk 0:00:52.5]} 31. Rb7 {[%clk 0:00:20.4]} 31... Kg8 {[%clk
0:00:46.8]} 32. Rb8+ {[%clk 0:00:20.2]} 32... Kh7 {[%clk 0:00:46.1]} 33. Rb7
{[%clk 0:00:20.6]} 33... Ne5 {[%clk 0:00:40.8]} 34. Be4 {[%clk 0:00:12]} 34...
Re2 {[%clk 0:00:29.7]} 35. Bg2 {[%clk 0:00:10.9]} 35... Rc2 {[%clk 0:00:24.8]}
36. Bd4 {[%clk 0:00:05.5]} 36... Nf3+ {[%clk 0:00:13.2]} 37. Bxf3 {[%clk
0:00:05.5]} 37... Bxd4 {[%clk 0:00:13.8]} 38. Rxf7+ {[%clk 0:00:05.4]} 38... Kh8
{[%clk 0:00:11.7]} 39. Bd5 {[%clk 0:00:05.9]} 39... Rxf2+ {[%clk 0:00:11.1]} 40.
Rxf2 {[%clk 0:00:04.7]} 40... Bxf2 {[%clk 0:00:12]} 41. Kg2 {[%clk 0:00:05]}
41... Bd4 {[%clk 0:00:11.6]} 42. Be4 {[%clk 0:00:05.5]} 42... Kg7 {[%clk
0:00:11.8]} 43. Kf3 {[%clk 0:00:06.4]} 43... Kf6 {[%clk 0:00:12.4]} 44. Bd3
{[%clk 0:00:07.2]} 44... Be5 {[%clk 0:00:12.8]} 45. Bc2 {[%clk 0:00:08]} 45...
Bd6 {[%clk 0:00:13.2]} 46. Bd3 {[%clk 0:00:08.5]} 46... Bc7 {[%clk 0:00:13.8]}
47. Bb1 {[%clk 0:00:09.3]} 47... Bd6 {[%clk 0:00:14.7]} 48. Bc2 {[%clk
0:00:10.1]} 48... Bc7 {[%clk 0:00:15.6]} 49. Bb1 {[%clk 0:00:10.9]} 49... Bd6
{[%clk 0:00:16]} 50. Bc2 {[%clk 0:00:11.8]} 50... Bc7 {[%clk 0:00:16.5]} 51. Bb1
{[%clk 0:00:12.6]} 1/2-1/2

[Event "Late-Titled-Tuesday-Blitz-October-24-2023"]
[Site "Chess.com"]
[Date "2023.10.24"]
[Round "5"]
[White "taleslascando"]
[Black "familijatop71"]
[Result "0-1"]
[WhiteElo "1982"]
[BlackElo "2133"]
[TimeControl "180+1"]
[EndTime "14:56:12 PDT"]
[Termination "familijatop71 won by checkmate"]

1. e4 {[%clk 0:02:56.5]} 1... d5 {[%clk 0:02:59.9]} 2. exd5 {[%clk 0:02:56.3]}
2... Qxd5 {[%clk 0:03:00.8]} 3. Nc3 {[%clk 0:02:56.9]} 3... Qa5 {[%clk
0:03:00.8]} 4. d4 {[%clk 0:02:54.6]} 4... c6 {[%clk 0:03:01.2]} 5. Bc4 {[%clk
0:02:54.5]} 5... Bf5 {[%clk 0:03:00.4]} 6. Ne2 {[%clk 0:02:50.1]} 6... e6 {[%clk
0:02:59.8]} 7. O-O {[%clk 0:02:43.5]} 7... Nd7 {[%clk 0:02:59.2]} 8. Ng3 {[%clk
0:02:43.5]} 8... Bg6 {[%clk 0:02:59.4]} 9. Re1 {[%clk 0:02:41.8]} 9... Be7
{[%clk 0:02:56.6]} 10. Bf4 {[%clk 0:02:29.4]} 10... Ngf6 {[%clk 0:02:53.3]} 11.
Nce4 {[%clk 0:02:24]} 11... O-O {[%clk 0:02:36.9]} 12. Nd6 {[%clk 0:02:12.5]}
12... b5 {[%clk 0:02:15.7]} 13. Bf1 {[%clk 0:01:58.7]} 13... Nd5 {[%clk
0:02:03.4]} 14. Bd2 {[%clk 0:01:35.6]} 14... Qc7 {[%clk 0:01:57.1]} 15. Nde4
{[%clk 0:01:32.1]} 15... a6 {[%clk 0:01:47.7]} 16. a4 {[%clk 0:01:22.6]} 16...
N7f6 {[%clk 0:01:43.5]} 17. Ng5 {[%clk 0:01:11.1]} 17... h6 {[%clk 0:01:36.6]}
18. Nf3 {[%clk 0:01:10.9]} 18... Bd6 {[%clk 0:01:23.8]} 19. Ne5 {[%clk
0:01:10.5]} 19... Bxe5 {[%clk 0:01:14.4]} 20. dxe5 {[%clk 0:01:11.4]} 20... Nd7
{[%clk 0:01:05.3]} 21. f4 {[%clk 0:00:51.4]} 21... Qb6+ {[%clk 0:00:52.8]} 22.
Kh1 {[%clk 0:00:51]} 22... Rfd8 {[%clk 0:00:29]} 23. f5 {[%clk 0:00:49.4]} 23...
exf5 {[%clk 0:00:20.3]} 24. e6 {[%clk 0:00:48.4]} 24... fxe6 {[%clk 0:00:20.4]}
25. Rxe6 {[%clk 0:00:48]} 25... Bf7 {[%clk 0:00:17.8]} 26. Re1 {[%clk
0:00:32.4]} 26... f4 {[%clk 0:00:18]} 27. Nh5 {[%clk 0:00:24.7]} 27... Ne3
{[%clk 0:00:16.1]} 28. Bxe3 {[%clk 0:00:24.4]} 28... fxe3 {[%clk 0:00:16]} 29.
Qg4 {[%clk 0:00:25]} 29... Bxh5 {[%clk 0:00:12.5]} 30. Qxh5 {[%clk 0:00:23.4]}
30... Nf6 {[%clk 0:00:12.5]} 31. Qg6 {[%clk 0:00:20.5]} 31... Re8 {[%clk
0:00:10.8]} 32. Bd3 {[%clk 0:00:20]} 32... c5 {[%clk 0:00:08.1]} 33. Rf1 {[%clk
0:00:19.5]} 33... c4 {[%clk 0:00:07.5]} 34. Rxf6 {[%clk 0:00:18.8]} 34... Qxf6
{[%clk 0:00:06.8]} 35. Qh7+ {[%clk 0:00:18.8]} 35... Kf7 {[%clk 0:00:04.5]} 36.
Rf1 {[%clk 0:00:17.5]} 36... Qxf1+ {[%clk 0:00:04.4]} 37. Bxf1 {[%clk 0:00:17]}
37... e2 {[%clk 0:00:05.3]} 38. Qf5+ {[%clk 0:00:15.7]} 38... Kg8 {[%clk
0:00:04.9]} 39. Qd5+ {[%clk 0:00:14.2]} 39... Kh8 {[%clk 0:00:04]} 40. Bxe2
{[%clk 0:00:14.4]} 40... Rad8 {[%clk 0:00:03.9]} 41. Qf3 {[%clk 0:00:09.7]}
41... Rf8 {[%clk 0:00:04.1]} 42. Qg4 {[%clk 0:00:08]} 42... Rd1+ {[%clk
0:00:03.6]} 43. Bxd1 {[%clk 0:00:07.7]} 43... Rf1# {[%clk 0:00:03.8]} 0-1

[Event "Late-Titled-Tuesday-Blitz-October-24-2023"]
[Site "Chess.com"]
[Date "2023.10.24"]
[Round "5"]
[White "leoduarte"]
[Black "midedu"]
[Result "0-1"]
[WhiteElo "2403"]
[BlackElo "2082"]
[TimeControl "180+1"]
[EndTime "14:56:15 PDT"]
[Termination "midedu won on time"]

1. d4 {[%clk 0:03:00.9]} 1... Nf6 {[%clk 0:02:59.5]} 2. Nf3 {[%clk 0:03:00.3]}
2... g6 {[%clk 0:03:00.1]} 3. Bf4 {[%clk 0:02:58.1]} 3... Bg7 {[%clk 0:03:00.4]}
4. e3 {[%clk 0:02:58.5]} 4... d6 {[%clk 0:03:00.9]} 5. h3 {[%clk 0:02:58]} 5...
Nbd7 {[%clk 0:02:58.3]} 6. Be2 {[%clk 0:02:58.1]} 6... c5 {[%clk 0:02:57.9]} 7.
c3 {[%clk 0:02:52.5]} 7... a6 {[%clk 0:02:56.7]} 8. a4 {[%clk 0:02:50.8]} 8...
b6 {[%clk 0:02:56.2]} 9. O-O {[%clk 0:02:50]} 9... Rb8 {[%clk 0:02:55.6]} 10.
Nbd2 {[%clk 0:02:32.8]} 10... O-O {[%clk 0:02:50.5]} 11. Bh2 {[%clk 0:02:29.2]}
11... b5 {[%clk 0:02:50]} 12. axb5 {[%clk 0:02:19.1]} 12... axb5 {[%clk
0:02:49.5]} 13. Re1 {[%clk 0:02:18.9]} 13... b4 {[%clk 0:02:36.2]} 14. Nc4
{[%clk 0:02:01.4]} 14... bxc3 {[%clk 0:02:32.9]} 15. bxc3 {[%clk 0:02:02.3]}
15... Ne4 {[%clk 0:02:24.7]} 16. Qc2 {[%clk 0:01:52.6]} 16... Bb7 {[%clk
0:02:17.9]} 17. Bd3 {[%clk 0:01:49.7]} 17... Nef6 {[%clk 0:02:10.6]} 18. e4
{[%clk 0:01:22.7]} 18... cxd4 {[%clk 0:02:09.5]} 19. cxd4 {[%clk 0:01:17.2]}
19... Rc8 {[%clk 0:02:07.9]} 20. Qb3 {[%clk 0:01:00.6]} 20... Ba8 {[%clk
0:02:03]} 21. e5 {[%clk 0:00:44]} 21... dxe5 {[%clk 0:01:59.4]} 22. Nfxe5 {[%clk
0:00:41.4]} 22... Bd5 {[%clk 0:01:44.2]} 23. Ra7 {[%clk 0:00:36.4]} 23... Nxe5
{[%clk 0:01:12.2]} 24. Bxe5 {[%clk 0:00:32.6]} 24... Nd7 {[%clk 0:00:46.2]} 25.
Bxg7 {[%clk 0:00:27.9]} 25... Kxg7 {[%clk 0:00:45.8]} 26. Qb4 {[%clk 0:00:27.7]}
26... e6 {[%clk 0:00:40.3]} 27. Ne3 {[%clk 0:00:09.6]} 27... Nf6 {[%clk
0:00:37.9]} 28. Rea1 {[%clk 0:00:07.7]} 28... Rb8 {[%clk 0:00:20]} 29. Qc5
{[%clk 0:00:07.8]} 29... Rc8 {[%clk 0:00:18.4]} 30. Qb4 {[%clk 0:00:07.1]} 30...
Rb8 {[%clk 0:00:13.1]} 31. Qc5 {[%clk 0:00:04.7]} 31... Rb2 {[%clk 0:00:12.5]}
32. Bf1 {[%clk 0:00:03.6]} 32... Ne4 {[%clk 0:00:11.2]} 33. f3 {[%clk
0:00:02.4]} 33... Nxc5 {[%clk 0:00:10.9]} 34. dxc5 {[%clk 0:00:02.9]} 34... Qg5
{[%clk 0:00:09.7]} 35. Ng4 {[%clk 0:00:02.7]} 35... h5 {[%clk 0:00:08.6]} 36. h4
{[%clk 0:00:02.4]} 36... Qxh4 {[%clk 0:00:08.4]} 37. Ne5 {[%clk 0:00:01.1]}
37... Qf2+ {[%clk 0:00:05.5]} 38. Kh1 {[%clk 0:00:01.7]} 38... Qxc5 {[%clk
0:00:05.1]} 39. Nd3 {[%clk 0:00:01.6]} 39... Qd4 {[%clk 0:00:03.3]} 40. Nxb2
{[%clk 0:00:02]} 40... Qxb2 {[%clk 0:00:03.5]} 41. Re1 {[%clk 0:00:01.5]} 41...
h4 {[%clk 0:00:03.2]} 42. Ra4 {[%clk 0:00:01.5]} 42... Qf2 {[%clk 0:00:03.2]}
0-1

[Event "Late-Titled-Tuesday-Blitz-October-24-2023"]
[Site "Chess.com"]
[Date "2023.10.24"]
[Round "5"]
[White "BardArtem"]
[Black "Championnn-9"]
[Result "1-0"]
[WhiteElo "2700"]
[BlackElo "2501"]
[TimeControl "180+1"]
[EndTime "14:56:16 PDT"]
[Termination "BardArtem won on time"]

1. e4 {[%clk 0:02:58.1]} 1... c5 {[%clk 0:01:58.7]} 2. c3 {[%clk 0:02:56]} 2...
e6 {[%clk 0:01:58.2]} 3. Nf3 {[%clk 0:02:41.6]} 3... d5 {[%clk 0:01:50]} 4. exd5
{[%clk 0:02:41.8]} 4... exd5 {[%clk 0:01:50.1]} 5. d4 {[%clk 0:02:40.5]} 5...
Nf6 {[%clk 0:01:50.4]} 6. Bb5+ {[%clk 0:02:39.9]} 6... Bd7 {[%clk 0:01:45.2]} 7.
Bxd7+ {[%clk 0:02:39.5]} 7... Nbxd7 {[%clk 0:01:44.6]} 8. O-O {[%clk 0:02:40.4]}
8... Be7 {[%clk 0:01:44.8]} 9. dxc5 {[%clk 0:02:40.4]} 9... Nxc5 {[%clk
0:01:43.9]} 10. Nbd2 {[%clk 0:02:40]} 10... O-O {[%clk 0:01:43.8]} 11. Nb3
{[%clk 0:02:39.4]} 11... Nce4 {[%clk 0:01:39.1]} 12. Be3 {[%clk 0:02:39.2]}
12... Ng4 {[%clk 0:01:32.4]} 13. Bd4 {[%clk 0:02:38.2]} 13... Bd6 {[%clk
0:01:19.4]} 14. h3 {[%clk 0:02:35.8]} 14... Nh6 {[%clk 0:01:19.6]} 15. Re1
{[%clk 0:02:32.7]} 15... Nf5 {[%clk 0:01:17.8]} 16. Nbd2 {[%clk 0:02:29.8]}
16... Re8 {[%clk 0:01:16.7]} 17. Qc2 {[%clk 0:02:21.2]} 17... Nh4 {[%clk
0:00:58.1]} 18. Nxh4 {[%clk 0:02:01.1]} 18... Qxh4 {[%clk 0:00:57.2]} 19. Nf3
{[%clk 0:02:01.5]} 19... Qh5 {[%clk 0:00:55]} 20. Re2 {[%clk 0:01:49.9]} 20...
Re6 {[%clk 0:00:54]} 21. Rae1 {[%clk 0:01:37.5]} 21... Rg6 {[%clk 0:00:50.8]}
22. Kh1 {[%clk 0:01:32.7]} 22... Qf5 {[%clk 0:00:47.3]} 23. c4 {[%clk
0:01:23.3]} 23... Rc8 {[%clk 0:00:44.2]} 24. c5 {[%clk 0:01:19.9]} 24... Bb8
{[%clk 0:00:40.2]} 25. Qb3 {[%clk 0:01:09.5]} 25... Qd7 {[%clk 0:00:23.6]} 26.
Be5 {[%clk 0:00:57.8]} 26... Nxc5 {[%clk 0:00:23.1]} 27. Qa3 {[%clk 0:00:50.4]}
27... Ne4 {[%clk 0:00:22.4]} 28. Bxb8 {[%clk 0:00:48.8]} 28... Rxb8 {[%clk
0:00:23.3]} 29. Ne5 {[%clk 0:00:49.1]} 29... Qf5 {[%clk 0:00:18.2]} 30. Nxg6
{[%clk 0:00:48.9]} 30... hxg6 {[%clk 0:00:16.1]} 31. Qf3 {[%clk 0:00:45.1]}
31... Qe5 {[%clk 0:00:14.2]} 32. Kg1 {[%clk 0:00:39.3]} 32... Rc8 {[%clk
0:00:14]} 33. Qe3 {[%clk 0:00:33.9]} 33... b6 {[%clk 0:00:12.7]} 34. f3 {[%clk
0:00:33.1]} 34... f5 {[%clk 0:00:03.1]} 35. fxe4 {[%clk 0:00:33.1]} 35... dxe4
{[%clk 0:00:03.6]} 36. Rc2 {[%clk 0:00:23.8]} 36... Rxc2 {[%clk 0:00:02.6]} 37.
Qb3+ {[%clk 0:00:24]} 37... Kh7 {[%clk 0:00:02.5]} 38. Qxc2 {[%clk 0:00:24.4]}
38... Qd4+ {[%clk 0:00:03.1]} 39. Kh1 {[%clk 0:00:24.8]} 39... Qf6 {[%clk
0:00:02]} 40. Rf1 {[%clk 0:00:23.7]} 40... Qg5 {[%clk 0:00:02.3]} 41. Qf2 {[%clk
0:00:23.6]} 41... e3 {[%clk 0:00:02.5]} 42. Qf3 {[%clk 0:00:21.4]} 42... Qe7
{[%clk 0:00:02]} 43. Re1 {[%clk 0:00:21.6]} 43... Qb4 {[%clk 0:00:02.2]} 44.
Qxe3 {[%clk 0:00:21.9]} 44... Qxb2 {[%clk 0:00:02.6]} 45. Qg3 {[%clk 0:00:22.2]}
45... Qf6 {[%clk 0:00:03]} 46. Qe5 {[%clk 0:00:20.8]} 46... Qh4 {[%clk
0:00:03.1]} 47. Qe7 {[%clk 0:00:20]} 47... Qb4 {[%clk 0:00:03.1]} 48. Qxb4
{[%clk 0:00:20]} 1-0

[Event "Late-Titled-Tuesday-Blitz-October-24-2023"]
[Site "Chess.com"]
[Date "2023.10.24"]
[Round "5"]
[White "gunslinger222"]
[Black "GianmarcoVaR"]
[Result "0-1"]
[WhiteElo "2336"]
[BlackElo "2679"]
[TimeControl "180+1"]
[EndTime "14:56:17 PDT"]
[Termination "GianmarcoVaR won on time"]

1. d4 {[%clk 0:03:00]} 1... Nf6 {[%clk 0:02:56.9]} 2. c4 {[%clk 0:02:56.8]} 2...
e6 {[%clk 0:02:51.8]} 3. Nf3 {[%clk 0:02:56.3]} 3... d5 {[%clk 0:02:50]} 4. Nc3
{[%clk 0:02:55.3]} 4... a6 {[%clk 0:02:46.6]} 5. cxd5 {[%clk 0:02:54.9]} 5...
exd5 {[%clk 0:02:45.2]} 6. Bg5 {[%clk 0:02:55.6]} 6... Be6 {[%clk 0:02:44.5]} 7.
Qb3 {[%clk 0:02:50.9]} 7... Ra7 {[%clk 0:02:37.9]} 8. Bxf6 {[%clk 0:02:41.9]}
8... Qxf6 {[%clk 0:02:07.2]} 9. g3 {[%clk 0:02:41.2]} 9... Qd8 {[%clk
0:01:56.1]} 10. h4 {[%clk 0:02:39.8]} 10... Bd6 {[%clk 0:01:36.5]} 11. Ng5
{[%clk 0:02:39.2]} 11... O-O {[%clk 0:01:36.6]} 12. Nxe6 {[%clk 0:02:36.7]}
12... fxe6 {[%clk 0:01:36.8]} 13. Bh3 {[%clk 0:02:37.4]} 13... Qf6 {[%clk
0:01:33.8]} 14. O-O {[%clk 0:02:32.5]} 14... Nc6 {[%clk 0:01:25.7]} 15. e3
{[%clk 0:02:12]} 15... Kh8 {[%clk 0:01:19.7]} 16. Ne2 {[%clk 0:02:06.9]} 16...
Ne7 {[%clk 0:00:52.3]} 17. Qd3 {[%clk 0:01:46.2]} 17... c6 {[%clk 0:00:44.6]}
18. e4 {[%clk 0:01:36.6]} 18... Bc7 {[%clk 0:00:34.9]} 19. e5 {[%clk 0:01:28.2]}
19... Qh6 {[%clk 0:00:32.2]} 20. Nf4 {[%clk 0:01:15.2]} 20... Rxf4 {[%clk
0:00:20.1]} 21. gxf4 {[%clk 0:01:16.1]} 21... Ra8 {[%clk 0:00:15.7]} 22. Qg3
{[%clk 0:01:09.8]} 22... Ng6 {[%clk 0:00:07.7]} 23. Bxe6 {[%clk 0:00:55.3]}
23... Nxf4 {[%clk 0:00:07.7]} 24. Bg4 {[%clk 0:00:50.5]} 24... Rf8 {[%clk
0:00:07.3]} 25. Rae1 {[%clk 0:00:44.4]} 25... Ba5 {[%clk 0:00:05.7]} 26. Re3
{[%clk 0:00:39.1]} 26... Bd8 {[%clk 0:00:06.1]} 27. h5 {[%clk 0:00:25.5]} 27...
Bg5 {[%clk 0:00:06.5]} 28. e6 {[%clk 0:00:20.6]} 28... Nxh5 {[%clk 0:00:04.5]}
29. Bxh5 {[%clk 0:00:20.1]} 29... Qxh5 {[%clk 0:00:04.2]} 30. Rf3 {[%clk
0:00:18.6]} 30... Bf6 {[%clk 0:00:03.6]} 31. Re1 {[%clk 0:00:16.5]} 31... Re8
{[%clk 0:00:03.6]} 32. e7 {[%clk 0:00:16.1]} 32... h6 {[%clk 0:00:03.1]} 33.
Rxf6 {[%clk 0:00:14.7]} 33... gxf6 {[%clk 0:00:03]} 34. Qd6 {[%clk 0:00:12.9]}
34... Rg8+ {[%clk 0:00:01.7]} 35. Kf1 {[%clk 0:00:12.9]} 35... Qh3+ {[%clk
0:00:01.3]} 36. Ke2 {[%clk 0:00:13.1]} 36... Qg4+ {[%clk 0:00:01.9]} 37. Kd2
{[%clk 0:00:12.4]} 37... Qg5+ {[%clk 0:00:02.3]} 38. Kc3 {[%clk 0:00:10.2]}
38... Re8 {[%clk 0:00:01.9]} 39. Qd7 {[%clk 0:00:09.1]} 39... Qg6 {[%clk
0:00:02.3]} 40. Re3 {[%clk 0:00:06.3]} 40... Qf7 {[%clk 0:00:02.5]} 41. Qd8
{[%clk 0:00:02.9]} 41... b6 {[%clk 0:00:02.6]} 0-1

[Event "Late-Titled-Tuesday-Blitz-October-24-2023"]
[Site "Chess.com"]
[Date "2023.10.24"]
[Round "5"]
[White "Miguelitro69"]
[Black "zverr1"]
[Result "0-1"]
[WhiteElo "2303"]
[BlackElo "2496"]
[TimeControl "180+1"]
[EndTime "14:56:17 PDT"]
[Termination "zverr1 won by resignation"]

1. e4 {[%clk 0:02:56.5]} 1... c5 {[%clk 0:02:59.8]} 2. Nf3 {[%clk 0:02:56.1]}
2... g6 {[%clk 0:03:00]} 3. d4 {[%clk 0:02:56.3]} 3... cxd4 {[%clk 0:03:00.9]}
4. Nxd4 {[%clk 0:02:56.3]} 4... Nc6 {[%clk 0:03:01.2]} 5. Nc3 {[%clk 0:02:56.3]}
5... Bg7 {[%clk 0:03:01.3]} 6. Be3 {[%clk 0:02:56.9]} 6... Nf6 {[%clk
0:03:01.9]} 7. Bc4 {[%clk 0:02:57.2]} 7... O-O {[%clk 0:03:02.5]} 8. Bb3 {[%clk
0:02:57.1]} 8... d5 {[%clk 0:03:03.2]} 9. exd5 {[%clk 0:02:51.6]} 9... Na5
{[%clk 0:03:02.7]} 10. Nde2 {[%clk 0:02:48.3]} 10... b6 {[%clk 0:02:56.1]} 11.
O-O {[%clk 0:02:42.7]} 11... Bb7 {[%clk 0:02:56.1]} 12. Nf4 {[%clk 0:02:41.9]}
12... Nxb3 {[%clk 0:02:55.8]} 13. axb3 {[%clk 0:02:41.4]} 13... Qd7 {[%clk
0:02:54.5]} 14. Qf3 {[%clk 0:02:35.9]} 14... Rfd8 {[%clk 0:02:49.3]} 15. Rfd1
{[%clk 0:02:35.6]} 15... Qf5 {[%clk 0:02:43.6]} 16. h3 {[%clk 0:01:49.4]} 16...
Qxc2 {[%clk 0:02:33]} 17. Nb5 {[%clk 0:01:17.6]} 17... Qxb3 {[%clk 0:02:08.6]}
18. Qe2 {[%clk 0:00:56.1]} 18... Nxd5 {[%clk 0:01:43.9]} 19. Nxd5 {[%clk
0:00:47.8]} 19... Rxd5 {[%clk 0:01:42.9]} 20. Rxd5 {[%clk 0:00:36.6]} 20... Qxd5
{[%clk 0:01:42.7]} 21. f3 {[%clk 0:00:31.8]} 21... Qe5 {[%clk 0:01:09.2]} 22.
Rxa7 {[%clk 0:00:28.5]} 22... Rxa7 {[%clk 0:01:06.5]} 23. Nxa7 {[%clk
0:00:27.7]} 23... Bh6 {[%clk 0:00:47.9]} 24. Kf2 {[%clk 0:00:25.8]} 24... Bxe3+
{[%clk 0:00:44.8]} 25. Qxe3 {[%clk 0:00:26]} 25... Qxb2+ {[%clk 0:00:45.5]} 26.
Kg3 {[%clk 0:00:26]} 26... Qb4 {[%clk 0:00:30.5]} 27. f4 {[%clk 0:00:19.6]}
27... Qe4 {[%clk 0:00:25.6]} 28. Qf2 {[%clk 0:00:17.5]} 28... e5 {[%clk
0:00:10.9]} 29. fxe5 {[%clk 0:00:14.9]} 29... Qxe5+ {[%clk 0:00:11.8]} 30. Qf4
{[%clk 0:00:11.2]} 30... Qxf4+ {[%clk 0:00:10.7]} 31. Kxf4 {[%clk 0:00:12.1]}
31... Bxg2 {[%clk 0:00:11.3]} 32. h4 {[%clk 0:00:11.7]} 32... h6 {[%clk
0:00:11]} 33. Nb5 {[%clk 0:00:11.7]} 33... Kg7 {[%clk 0:00:10.3]} 34. Nd6 {[%clk
0:00:11.6]} 34... Bc6 {[%clk 0:00:09.7]} 35. Nc4 {[%clk 0:00:10.9]} 35... b5
{[%clk 0:00:09.9]} 36. Ne5 {[%clk 0:00:11.1]} 36... Be8 {[%clk 0:00:10.6]} 37.
Nd3 {[%clk 0:00:11.3]} 37... Kf6 {[%clk 0:00:09.5]} 38. Nc5 {[%clk 0:00:10.1]}
38... g5+ {[%clk 0:00:09.7]} 39. hxg5+ {[%clk 0:00:09.8]} 39... hxg5+ {[%clk
0:00:10.6]} 40. Ke3 {[%clk 0:00:10]} 40... Ke5 {[%clk 0:00:09.8]} 41. Ne4 {[%clk
0:00:10]} 41... g4 {[%clk 0:00:08.6]} 42. Kd3 {[%clk 0:00:09.4]} 42... f5 {[%clk
0:00:07.8]} 43. Nc3 {[%clk 0:00:05.2]} 43... g3 {[%clk 0:00:07.3]} 44. Nxb5
{[%clk 0:00:02.7]} 44... Bxb5+ {[%clk 0:00:07.1]} 45. Ke3 {[%clk 0:00:02.5]}
45... f4+ {[%clk 0:00:08]} 0-1